fUST/lending_fUST_20250729
["ID","MTS","AMOUNT","RATE_DAILY","PERIOD"]
[375896086,1753776662907,-917.94,0.00020273,2]
[375896088,1753776662916,-460.0,0.00020273,2]
[375896090,1753776662925,-460.0,0.00020273,2]
[375896092,1753776662934,-583.5,0.00020273,2]
[375896094,1753776662944,-460.0,0.00020273,2]
[375896096,1753776662953,-151.0,0.00020273,2]
[375896098,1753776662962,-151.0,0.00020273,2]
[375896100,1753776662971,-465.06464899,0.00020273,2]
[375896102,1753776662980,-462.72,0.00020273,2]
[375896104,1753776662989,-505.1,0.00020273,2]
[375896106,1753776662998,-460.0,0.00020273,2]
[375896108,1753776663007,-460.0,0.00020273,2]
[375896110,1753776663016,-741.76,0.00020273,2]
[375896112,1753776663025,-151.0,0.00020273,2]
[375896122,1753776663036,-460.0,0.00020273,2]
[375896124,1753776663126,-460.0,0.00020273,2]
[375896126,1753776663136,-460.0,0.00020273,2]
[375896128,1753776663146,-460.0,0.00020273,2]
[375896130,1753776663157,-582.91,0.00020273,2]
[375896132,1753776663167,-154.062904,0.00020273,2]
[375896134,1753776663176,-460.0,0.00020273,2]
[375896136,1753776663185,-151.0,0.00020273,2]
[375896138,1753776663195,-460.0,0.00020273,2]
[375896140,1753776663205,-460.0,0.00020273,2]
[375896142,1753776663214,-580.42,0.00020273,2]
[375896144,1753776663223,-542.54,0.00020273,2]
[375896146,1753776663235,-460.0,0.00020273,2]
[375896148,1753776663244,-460.0,0.00020273,2]
[375896150,1753776663253,-460.0,0.00020273,2]
[375896152,1753776663264,-460.0,0.00020273,2]
[375896154,1753776663274,-460.0,0.00020273,2]
[375896156,1753776663285,-460.0,0.00020273,2]
[375896158,1753776663295,-460.0,0.00020273,2]
[375896161,1753776663304,-460.0,0.00020273,2]
[375896163,1753776663314,-460.0,0.00020273,2]
[375896165,1753776663324,-460.0,0.00020273,2]
[375896167,1753776663333,-460.0,0.00020273,2]
[375896169,1753776663343,-460.0,0.00020273,2]
[375896171,1753776663352,-460.0,0.00020273,2]
[375896172,1753776663363,-542.4,0.00020273,2]
[375896174,1753776663372,-460.0,0.00020273,2]
[375896176,1753776663382,-460.0,0.00020273,2]
[375896178,1753776663392,-460.0,0.00020273,2]
[375896180,1753776663405,-337.07368234,0.00020273,2]
[375896182,1753776663416,-5509.74,0.00020273,2]
[375896184,1753776663426,-151.0,0.00020273,2]
[375896186,1753776663435,-460.0,0.00020273,2]
[375896188,1753776663447,-460.0,0.00020273,2]
[375896191,1753776663457,-5280.17,0.00020273,2]
[375896192,1753776663466,-460.0,0.00020273,2]
[375896195,1753776663476,-460.0,0.00020273,2]
[375896197,1753776663487,-460.0,0.00020273,2]
[375896199,1753776663497,-1039.05,0.00020273,2]
[375896201,1753776663507,-460.0,0.00020273,2]
[375896203,1753776663516,-460.0,0.00020273,2]
[375896204,1753776663526,-155.55616567,0.00020273,2]
[375896206,1753776663536,-460.0,0.00020273,2]
[375896209,1753776663547,-1586.57,0.00020273,2]
[375896211,1753776663557,-460.0,0.00020273,2]
[375896213,1753776663567,-460.0,0.00020273,2]
[375896215,1753776663577,-460.0,0.00020273,2]
[375896217,1753776663587,-460.0,0.00020273,2]
[375896219,1753776663596,-151.0,0.00020273,2]
[375896220,1753776663605,-279.111056,0.00020273,2]
[375896223,1753776663616,-474.55,0.00020273,2]
[375896224,1753776663625,-460.0,0.00020273,2]
[375896226,1753776663635,-334.80967812,0.00020273,2]
[375896228,1753776663644,-255.6541894,0.00020273,2]
[375896230,1753776663656,-151.0,0.00020273,2]
[375896233,1753776663667,-460.0,0.00020273,2]
[375896234,1753776663680,-460.0,0.00020273,2]
[375896236,1753776663699,-734.551308,0.00020273,2]
[375896238,1753776663708,-460.0,0.00020273,2]
[375896240,1753776663718,-734.551308,0.00020273,2]
[375896242,1753776663728,-590.39,0.00020273,2]
[375896244,1753776663737,-150.55961665,0.00020273,2]
[375896246,1753776663747,-460.0,0.00020273,2]
[375896248,1753776663756,-460.0,0.00020273,2]
[375896250,1753776663766,-460.0,0.00020273,2]
[375896253,1753776663775,-460.0,0.00020273,2]
[375896255,1753776663785,-460.0,0.00020273,2]
[375896257,1753776663795,-460.0,0.00020273,2]
[375896259,1753776663805,-657.55,0.00020273,2]
[375896261,1753776663814,-151.0,0.00020273,2]
[375896263,1753776663823,-460.0,0.00020273,2]
[375896265,1753776663833,-460.0,0.00020273,2]
[375896267,1753776663842,-743.36,0.00020273,2]
[375896269,1753776663852,-460.0,0.00020273,2]
[375896271,1753776663862,-460.0,0.00020273,2]
[375896273,1753776663871,-460.0,0.00020273,2]
[375896274,1753776663882,-2071.52,0.00020273,2]
[375896277,1753776663891,-460.0,0.00020273,2]
[375896278,1753776663903,-460.0,0.00020273,2]
[375896280,1753776663912,-747.04,0.00020273,2]
[375896283,1753776663922,-460.0,0.00020273,2]
[375896285,1753776663932,-460.0,0.00020273,2]
[375896287,1753776663942,-460.0,0.00020273,2]
[375896288,1753776663952,-460.0,0.00020273,2]
[375896291,1753776663962,-692.91,0.00020273,2]
[375896293,1753776663972,-460.0,0.00020273,2]
[375896295,1753776663982,-460.0,0.00020273,2]
[375896296,1753776663991,-460.0,0.00020273,2]
[375896298,1753776664002,-460.0,0.00020273,2]
[375896301,1753776664012,-3221.33,0.00020273,2]
[375896303,1753776664022,-460.0,0.00020273,2]
[375896304,1753776664032,-460.0,0.00020273,2]
[375896307,1753776664042,-460.0,0.00020273,2]
[375896309,1753776664054,-460.0,0.00020273,2]
[375896311,1753776664063,-460.0,0.00020273,2]
[375896313,1753776664073,-460.0,0.00020273,2]
[375896315,1753776664083,-254.29587175,0.00020273,2]
[375896317,1753776664093,-460.0,0.00020273,2]
[375896319,1753776664103,-460.0,0.00020273,2]
[375896321,1753776664112,-460.0,0.00020273,2]
[375896323,1753776664122,-460.0,0.00020273,2]
[375896325,1753776664131,-227.30589548,0.00020273,2]
[375896327,1753776664141,-460.0,0.00020273,2]
[375896329,1753776664152,-482.19,0.00020273,2]
[375896331,1753776664162,-460.0,0.00020273,2]
[375896333,1753776664171,-460.0,0.00020273,2]
[375896335,1753776664180,-622.22,0.00020273,2]
[375896337,1753776664190,-460.0,0.00020273,2]
[375896339,1753776664199,-509.01,0.00020273,2]
[375896341,1753776664208,-2176.17,0.00020273,2]
[375896343,1753776664217,-460.0,0.00020273,2]
[375896345,1753776664227,-609.97,0.00020273,2]
[375896347,1753776664236,-6312.74,0.00020273,2]
[375896349,1753776664245,-460.0,0.00020273,2]
[375896351,1753776664255,-460.0,0.00020273,2]
[375896353,1753776664264,-460.0,0.00020273,2]
[375896355,1753776664275,-622.39,0.00020273,2]
[375896357,1753776664285,-460.0,0.00020273,2]
[375896358,1753776664295,-460.0,0.00020273,2]
[375896361,1753776664305,-882.39,0.00020273,2]
[375896363,1753776664315,-460.0,0.00020273,2]
[375896365,1753776664325,-1111.58,0.00020273,2]
[375896366,1753776664334,-561.09862588,0.00020273,2]
[375896368,1753776664344,-2745.83,0.00020273,2]
[375896370,1753776664354,-510.4,0.00020273,2]
[375896372,1753776664364,-460.0,0.00020273,2]
[375896375,1753776664375,-460.0,0.00020273,2]
[375896376,1753776664384,-460.0,0.00020273,2]
[375896385,1753776664462,-460.0,0.00020273,2]
[375896387,1753776664472,-460.0,0.00020273,2]
[375896389,1753776664481,-654.57,0.00020273,2]
[375896391,1753776664490,-1247.81,0.00020273,2]
[375896393,1753776664499,-2060.04,0.00020273,2]
[375896395,1753776664509,-541.04,0.00020273,2]
[375896397,1753776664519,-460.0,0.00020273,2]
[375896398,1753776664527,-460.0,0.00020273,2]
[375896400,1753776664537,-460.0,0.00020273,2]
[375896402,1753776664546,-2387.66,0.00020273,2]
[375896404,1753776664555,-460.0,0.00020273,2]
[375896406,1753776664565,-460.0,0.00020273,2]
[375896408,1753776664574,-460.0,0.00020273,2]
[375896410,1753776664584,-753.18,0.00020273,2]
[375896412,1753776664593,-460.0,0.00020273,2]
[375896414,1753776664602,-472.96,0.00020273,2]
[375896416,1753776664611,-802.4,0.00020273,2]
[375896418,1753776664620,-706.12,0.00020273,2]
[375896420,1753776664629,-1855.46,0.00020273,2]
[375896422,1753776664639,-458.41123233,0.00020273,2]
[375896424,1753776664650,-460.0,0.00020273,2]
[375896426,1753776664659,-460.0,0.00020273,2]
[375896427,1753776664668,-460.0,0.00020273,2]
[375896429,1753776664677,-460.0,0.00020273,2]
[375896431,1753776664686,-460.0,0.00020273,2]
[375896433,1753776664695,-1763.54,0.00020273,2]
[375896435,1753776664705,-460.0,0.00020273,2]
[375896437,1753776664713,-151.0,0.00020273,2]
[375896439,1753776664723,-1594.38,0.00020273,2]
[375896441,1753776664732,-460.0,0.00020273,2]
[375896443,1753776664741,-460.0,0.00020273,2]
[375896445,1753776664750,-464.29136141,0.00020273,2]
[375896447,1753776664759,-460.0,0.00020273,2]
[375896449,1753776664769,-724.34,0.00020273,2]
[375896451,1753776664777,-788.79,0.00020273,2]
[375896452,1753776664787,-1760.1,0.00020273,2]
[375896454,1753776664796,-198.0,0.00020274,2]
[375896456,1753776664806,-500.0,0.00020274,2]
[375896458,1753776664815,-151.0,0.00020274,2]
[375896460,1753776664824,-500.0,0.00020315,2]
[375896462,1753776664833,-526.67226028,0.00020323,2]
[375896464,1753776664842,-460.5085953,0.00020325,2]
[375896466,1753776664851,-841.06558547,0.00020325,2]
[375896468,1753776664860,-160.0,0.00020325,2]
[375896470,1753776664870,-216.1031716,0.00020325,2]
[375896472,1753776664879,-214.91980558,0.00020325,2]
[375896474,1753776664889,-160.0,0.00020325,2]
[375896476,1753776664900,-160.0,0.00020325,2]
[375896478,1753776664909,-160.0,0.00020325,2]
[375896480,1753776664918,-160.0,0.00020329,2]
[375896482,1753776664928,-231.39372452,0.00020329,2]
[375896483,1753776664937,-160.0,0.00020329,2]
[375896485,1753776664947,-12637.12721421,0.00020329,2]
[375896487,1753776664957,-160.0,0.00020336,2]
[375896489,1753776664970,-312.16666667,0.00020336,2]
[375896491,1753776664980,-179.80221756,0.00020341,2]
[375896493,1753776664989,-1680.0,0.00020346,2]
[375896495,1753776664999,-420.0,0.00020346,2]
[375896497,1753776665009,-420.0,0.00020346,2]
[375896499,1753776665019,-420.0,0.00020346,2]
[375896501,1753776665028,-420.0,0.00020346,2]
[375896503,1753776665038,-420.0,0.00020347,2]
[375896505,1753776665047,-700.0,0.00020402,2]
[375896507,1753776665057,-544.885688,0.00020421,2]
[375896509,1753776665066,-544.885688,0.00020421,2]
[375896511,1753776665075,-151.0,0.00020421,2]
[375896513,1753776665085,-151.0,0.00020421,2]
[375896515,1753776665094,-1680.0,0.00020445,2]
[375896517,1753776665103,-501.72687444,0.00020521,2]
[375896519,1753776665113,-460.0,0.00020547,2]
[375896521,1753776665122,-460.0,0.00020547,2]
[375896523,1753776665131,-151.0,0.00020547,2]
[375896525,1753776665140,-561.16,0.00020547,2]
[375896527,1753776665150,-356.19279644,0.00020547,2]
[375896529,1753776665159,-464.73578687,0.00020547,2]
[375896531,1753776665168,-540.16302151,0.00020547,2]
[375896532,1753776665178,-460.0,0.00020547,2]
[375896534,1753776665189,-470.42409796,0.00020547,2]
[375896536,1753776665198,-538.14323005,0.00020547,2]
[375896538,1753776665207,-456.31356584,0.00020547,2]
[375896540,1753776665217,-674.1,0.00020547,2]
[375896542,1753776665227,-460.0,0.00020547,2]
[375896544,1753776665237,-151.0,0.00020547,2]
[375896546,1753776665247,-460.0,0.00020547,2]
[375896548,1753776665257,-151.0,0.00020547,2]
[375896550,1753776665266,-151.0,0.00020547,2]
[375896552,1753776665275,-151.0,0.00020547,2]
[375896554,1753776665284,-580.97,0.00020547,2]
[375896556,1753776665293,-460.0,0.00020547,2]
[375896558,1753776665303,-603.16775823,0.00020547,2]
[375896560,1753776665313,-460.0,0.00020547,2]
[375896562,1753776665323,-460.49,0.00020547,2]
[375896564,1753776665332,-460.0,0.00020547,2]
[375896566,1753776665341,-264.30635117,0.00020547,2]
[375896568,1753776665351,-460.0,0.00020547,2]
[375896570,1753776665360,-460.0,0.00020547,2]
[375896572,1753776665370,-460.0,0.00020547,2]
[375896574,1753776665379,-460.0,0.00020547,2]
[375896576,1753776665389,-460.0,0.00020547,2]
[375896578,1753776665398,-775.13,0.00020547,2]
[375896580,1753776665409,-460.0,0.00020547,2]
[375896581,1753776665420,-460.0,0.00020547,2]
[375896583,1753776665429,-460.0,0.00020547,2]
[375896585,1753776665439,-460.0,0.00020547,2]
[375896587,1753776665448,-460.0,0.00020547,2]
[375896589,1753776665458,-460.0,0.00020547,2]
[375896591,1753776665468,-460.0,0.00020547,2]
[375896593,1753776665477,-460.0,0.00020547,2]
[375896595,1753776665488,-460.0,0.00020547,2]
[375896597,1753776665498,-209.14626558,0.00020547,2]
[375896599,1753776665507,-460.0,0.00020547,2]
[375896601,1753776665517,-460.0,0.00020547,2]
[375896603,1753776665526,-460.0,0.00020547,2]
[375896605,1753776665536,-460.0,0.00020547,2]
[375896607,1753776665545,-460.0,0.00020547,2]
[375896609,1753776665554,-460.0,0.00020547,2]
[375896611,1753776665564,-460.0,0.00020547,2]
[375896619,1753776665639,-460.0,0.00020547,2]
[375896621,1753776665648,-227.78988019,0.00020547,2]
[375896623,1753776665660,-460.0,0.00020547,2]
[375896625,1753776665669,-460.0,0.00020547,2]
[375896627,1753776665678,-460.0,0.00020547,2]
[375896629,1753776665688,-460.0,0.00020547,2]
[375896631,1753776665697,-460.0,0.00020547,2]
[375896633,1753776665707,-460.0,0.00020547,2]
[375896635,1753776665716,-567.47,0.00020547,2]
[375896637,1753776665725,-917.94,0.00020547,2]
[375896639,1753776665735,-460.0,0.00020547,2]
[375896641,1753776665745,-583.5,0.00020547,2]
[375896643,1753776665754,-460.0,0.00020547,2]
[375896645,1753776665764,-460.0,0.00020547,2]
[375896647,1753776665773,-462.72,0.00020547,2]
[375896649,1753776665783,-505.1,0.00020547,2]
[375896651,1753776665792,-460.0,0.00020547,2]
[375896653,1753776665802,-741.76,0.00020547,2]
[375896655,1753776665811,-216.24187738,0.00020547,2]
[375896657,1753776665821,-460.0,0.00020547,2]
[375896659,1753776665830,-460.0,0.00020547,2]
[375896661,1753776665839,-460.0,0.00020547,2]
[375896663,1753776665848,-582.91,0.00020547,2]
[375896665,1753776665858,-460.0,0.00020547,2]
[375896667,1753776665867,-460.0,0.00020547,2]
[375896669,1753776665877,-463.64046491,0.00020547,2]
[375896671,1753776665886,-580.42,0.00020547,2]
[375896672,1753776665896,-542.54,0.00020547,2]
[375896674,1753776665908,-460.0,0.00020547,2]
[375896677,1753776665919,-460.0,0.00020547,2]
[375896678,1753776665928,-460.0,0.00020547,2]
[375896680,1753776665937,-460.0,0.00020547,2]
[375896682,1753776665946,-460.0,0.00020547,2]
[375896684,1753776665956,-310.48121328,0.00020547,2]
[375896686,1753776665965,-332.06771618,0.00020547,2]
[375896688,1753776665975,-460.0,0.00020547,2]
[375896690,1753776665984,-460.0,0.00020547,2]
[375896692,1753776665994,-460.0,0.00020547,2]
[375896694,1753776666003,-460.0,0.00020547,2]
[375896696,1753776666013,-271.2726652,0.00020547,2]
[375896698,1753776666023,-460.0,0.00020547,2]
[375896700,1753776666032,-542.4,0.00020547,2]
[375896702,1753776666042,-460.0,0.00020547,2]
[375896704,1753776666051,-460.0,0.00020547,2]
[375896706,1753776666061,-5509.74,0.00020547,2]
[375896708,1753776666070,-445.40877818,0.00020547,2]
[375896710,1753776666079,-5280.17,0.00020547,2]
[375896712,1753776666089,-460.0,0.00020547,2]
[375896714,1753776666098,-460.0,0.00020547,2]
[375896716,1753776666107,-460.0,0.00020547,2]
[375896718,1753776666116,-1039.05,0.00020547,2]
[375896720,1753776666126,-460.0,0.00020547,2]
[375896722,1753776666135,-460.0,0.00020547,2]
[375896724,1753776666144,-460.0,0.00020547,2]
[375896726,1753776666159,-1586.57,0.00020547,2]
[375896729,1753776666178,-460.0,0.00020547,2]
[375896732,1753776666194,-460.0,0.00020547,2]
[375896735,1753776666212,-460.0,0.00020547,2]
[375896738,1753776666230,-151.0,0.00020547,2]
[375896740,1753776666247,-474.55,0.00020547,2]
[375896743,1753776666265,-460.0,0.00020547,2]
[375896746,1753776666280,-151.0,0.00020547,2]
[375896748,1753776666295,-418.46886425,0.00020547,2]
[375896751,1753776666314,-460.0,0.00020547,2]
[375896754,1753776666333,-734.551308,0.00020547,2]
[375896757,1753776666349,-460.0,0.00020547,2]
[375896759,1753776666364,-734.551308,0.00020547,2]
[375896762,1753776666381,-590.39,0.00020547,2]
[375896765,1753776666397,-460.0,0.00020547,2]
[375896767,1753776666413,-460.0,0.00020547,2]
[375896769,1753776666428,-460.0,0.00020547,2]
[375896772,1753776666443,-460.0,0.00020547,2]
[375896774,1753776666457,-460.0,0.00020547,2]
[375896777,1753776666472,-460.0,0.00020547,2]
[375896778,1753776666489,-657.55,0.00020547,2]
[375896779,1753776666504,-151.0,0.00020547,2]
[375896780,1753776666519,-460.0,0.00020547,2]
[375896781,1753776666534,-460.0,0.00020547,2]
[375896782,1753776666549,-743.36,0.00020547,2]
[375896783,1753776666564,-460.0,0.00020547,2]
[375896784,1753776666579,-460.0,0.00020547,2]
[375896785,1753776666593,-460.0,0.00020547,2]
[375896786,1753776666607,-2071.52,0.00020547,2]
[375896787,1753776666623,-460.0,0.00020547,2]
[375896788,1753776666636,-460.0,0.00020547,2]
[375896790,1753776666652,-747.04,0.00020547,2]
[375896792,1753776666667,-460.0,0.00020547,2]
[375896795,1753776666681,-460.0,0.00020547,2]
[375896798,1753776666696,-460.0,0.00020547,2]
[375896800,1753776666708,-692.91,0.00020547,2]
[375896802,1753776666717,-460.0,0.00020547,2]
[375896804,1753776666727,-460.0,0.00020547,2]
[375896806,1753776666736,-460.0,0.00020547,2]
[375896808,1753776666745,-460.0,0.00020547,2]
[375896810,1753776666755,-3221.33,0.00020547,2]
[375896812,1753776666765,-383.21296187,0.00020547,2]
[375896814,1753776666775,-460.0,0.00020547,2]
[375896816,1753776666785,-460.0,0.00020547,2]
[375896818,1753776666795,-460.0,0.00020547,2]
[375896820,1753776666805,-460.0,0.00020547,2]
[375896822,1753776666815,-460.0,0.00020547,2]
[375896824,1753776666823,-460.0,0.00020547,2]
[375896826,1753776666833,-460.0,0.00020547,2]
[375896828,1753776666843,-460.0,0.00020547,2]
[375896830,1753776666852,-460.0,0.00020547,2]
[375896832,1753776666861,-460.0,0.00020547,2]
[375896834,1753776666871,-482.19,0.00020547,2]
[375896836,1753776666880,-576.8137197,0.00020547,2]
[375896856,1753776667065,-460.0,0.00020547,2]
[375896858,1753776667079,-622.22,0.00020547,2]
[375896860,1753776667090,-460.0,0.00020547,2]
[375896862,1753776667099,-509.01,0.00020547,2]
[375896864,1753776667109,-2176.17,0.00020547,2]
[375896866,1753776667118,-460.0,0.00020547,2]
[375896868,1753776667127,-609.97,0.00020547,2]
[375896870,1753776667136,-6312.74,0.00020547,2]
[375896872,1753776667145,-460.0,0.00020547,2]
[375896874,1753776667155,-460.0,0.00020547,2]
[375896876,1753776667166,-460.0,0.00020547,2]
[375896878,1753776667175,-622.39,0.00020547,2]
[375896880,1753776667185,-460.0,0.00020547,2]
[375896882,1753776667195,-460.0,0.00020547,2]
[375896884,1753776667204,-882.39,0.00020547,2]
[375896886,1753776667214,-460.0,0.00020547,2]
[375896888,1753776667223,-1111.58,0.00020547,2]
[375896890,1753776667232,-2745.83,0.00020547,2]
[375896893,1753776667243,-510.4,0.00020547,2]
[375896895,1753776667252,-460.0,0.00020547,2]
[375896897,1753776667262,-460.0,0.00020547,2]
[375896899,1753776667272,-460.0,0.00020547,2]
[375896900,1753776667281,-460.0,0.00020547,2]
[375896902,1753776667291,-460.0,0.00020547,2]
[375896904,1753776667300,-654.57,0.00020547,2]
[375896907,1753776667310,-1247.81,0.00020547,2]
[375896908,1753776667319,-2060.04,0.00020547,2]
[375896910,1753776667329,-541.04,0.00020547,2]
[375896912,1753776667338,-460.0,0.00020547,2]
[375896914,1753776667348,-460.0,0.00020547,2]
[375896916,1753776667357,-372.42501981,0.00020547,2]
[375896918,1753776667367,-2387.66,0.00020547,2]
[375896921,1753776667377,-460.0,0.00020547,2]
[375896922,1753776667387,-460.0,0.00020547,2]
[375896925,1753776667396,-753.18,0.00020547,2]
[375896926,1753776667408,-460.0,0.00020547,2]
[375896928,1753776667419,-472.96,0.00020547,2]
[375896931,1753776667428,-802.4,0.00020547,2]
[375896933,1753776667438,-706.12,0.00020547,2]
[375896935,1753776667447,-1855.46,0.00020547,2]
[375896937,1753776667457,-460.0,0.00020547,2]
[375896938,1753776667467,-460.0,0.00020547,2]
[375896940,1753776667476,-460.0,0.00020547,2]
[375896943,1753776667487,-460.0,0.00020547,2]
[375896945,1753776667497,-1763.54,0.00020547,2]
[375896947,1753776667506,-460.0,0.00020547,2]
[375896949,1753776667517,-460.0,0.00020547,2]
[375896951,1753776667526,-179.614784,0.00020547,2]
[375896953,1753776667535,-1594.38,0.00020547,2]
[375896955,1753776667544,-460.0,0.00020547,2]
[375896957,1753776667554,-460.0,0.00020547,2]
[375896959,1753776667563,-460.0,0.00020547,2]
[375896961,1753776667572,-724.34,0.00020547,2]
[375896963,1753776667581,-1760.1,0.00020547,2]
[375896965,1753776667591,-500.0,0.00020548,2]
[375896967,1753776667601,-500.0,0.00020548,2]
[375896969,1753776667611,-1500.0,0.00020568,2]
[375896971,1753776667620,-1500.0,0.00020568,2]
[375896973,1753776667629,-1337.15305541,0.00020568,2]
[375896975,1753776667639,-1500.0,0.00020568,2]
[375896977,1753776667650,-500.0,0.00020568,2]
[375896979,1753776667660,-1422.97070679,0.00020568,2]
[375896981,1753776667670,-1500.0,0.00020568,2]
[375896983,1753776667679,-1500.0,0.00020568,2]
[375896985,1753776667688,-500.0,0.00020588,2]
[375896987,1753776667697,-1378.22388512,0.0002063,2]
[375896989,1753776667709,-151.0,0.00020721,2]
[375896991,1753776667718,-154.752744,0.00020721,2]
[375896993,1753776667727,-151.0,0.00020721,2]
[375896995,1753776667737,-151.0,0.00020721,2]
[375896997,1753776667746,-7935.43378144,0.00020745,2]
[375896999,1753776667756,-1893.09451467,0.00020747,2]
[375897001,1753776667765,-156.688,0.00020754,2]
[375897003,1753776667774,-360.0,0.00020815,2]
[375897005,1753776667783,-1000.0,0.00020821,2]
[375897007,1753776667793,-1000.0,0.00020821,2]
[375897009,1753776667802,-1000.0,0.00020821,2]
[375897011,1753776667812,-460.0,0.00020821,2]
[375897013,1753776667822,-196.55167787,0.00020821,2]
[375897015,1753776667832,-561.16,0.00020821,2]
[375897017,1753776667841,-460.0,0.00020821,2]
[375897019,1753776667851,-244.62174594,0.00020821,2]
[375897021,1753776667860,-674.1,0.00020821,2]
[375897023,1753776667869,-460.0,0.00020821,2]
[375897025,1753776667879,-460.0,0.00020821,2]
[375897027,1753776667889,-151.0,0.00020821,2]
[375897029,1753776667898,-151.0,0.00020821,2]
[375897031,1753776667909,-181.465626,0.00020821,2]
[375897033,1753776667918,-580.97,0.00020821,2]
[375897035,1753776667928,-460.0,0.00020821,2]
[375897037,1753776667937,-460.49,0.00020821,2]
[375897039,1753776667947,-460.0,0.00020821,2]
[375897041,1753776667956,-460.0,0.00020821,2]
[375897043,1753776667966,-566.41022608,0.00020821,2]
[375897045,1753776667976,-460.0,0.00020821,2]
[375897047,1753776667986,-460.0,0.00020821,2]
[375897049,1753776667996,-775.13,0.00020821,2]
[375897051,1753776668006,-460.0,0.00020821,2]
[375897053,1753776668015,-460.0,0.00020821,2]
[375897055,1753776668025,-460.0,0.00020821,2]
[375897057,1753776668034,-460.0,0.00020821,2]
[375897059,1753776668044,-460.0,0.00020821,2]
[375897061,1753776668053,-460.0,0.00020821,2]
[375897063,1753776668062,-460.0,0.00020821,2]
[375897065,1753776668072,-544.885688,0.00020821,2]
[375897067,1753776668081,-460.0,0.00020821,2]
[375897069,1753776668090,-544.885688,0.00020821,2]
[375897071,1753776668100,-460.0,0.00020821,2]
[375897073,1753776668110,-151.0,0.00020821,2]
[375897075,1753776668120,-460.0,0.00020821,2]
[375897077,1753776668130,-151.0,0.00020821,2]
[375897079,1753776668140,-460.0,0.00020821,2]
[375897081,1753776668149,-460.0,0.00020821,2]
[375897083,1753776668159,-460.0,0.00020821,2]
[375897085,1753776668168,-460.0,0.00020821,2]
[375897087,1753776668177,-460.0,0.00020821,2]
[375897088,1753776668186,-466.13213713,0.00020821,2]
[375897090,1753776668195,-460.0,0.00020821,2]
[375897092,1753776668205,-460.0,0.00020821,2]
[375897094,1753776668214,-460.0,0.00020821,2]
[375897096,1753776668223,-460.0,0.00020821,2]
[375897099,1753776668233,-335.27430339,0.00020821,2]
[375897100,1753776668242,-567.47,0.00020821,2]
[375897102,1753776668252,-917.94,0.00020821,2]
[375897104,1753776668261,-460.0,0.00020821,2]
[375897106,1753776668271,-583.5,0.00020821,2]
[375897108,1753776668281,-467.97694107,0.00020821,2]
[375897110,1753776668291,-460.0,0.00020821,2]
[375897112,1753776668300,-462.72,0.00020821,2]
[375897114,1753776668310,-505.1,0.00020821,2]
[375897116,1753776668319,-460.0,0.00020821,2]
[375897118,1753776668330,-741.76,0.00020821,2]
[375897120,1753776668339,-460.0,0.00020821,2]